[Event "*** Titled Tuesday 3|2 Blitz"]
[Site "Chess.com"]
[Date "2016.10.04"]
[Round "8"]
[White "ka1ser64"]
[Black "Grootneus"]
[Result "0-1"]
[WhiteElo "2295"]
[BlackElo "2009"]
[TimeControl "180+2"]
[EndTime "12:37:24 PDT"]
[Termination "Grootneus won by resignation"]

1. d4 {[%clk 0:03:02]} 1... Nf6 {[%clk 0:02:59.1]} 2. c4 {[%clk 0:03:02.7]} 2...
c5 {[%clk 0:02:55.1]} 3. d5 {[%clk 0:03:03.4]} 3... b5 {[%clk 0:02:56.7]} 4.
cxb5 {[%clk 0:03:05.3]} 4... a6 {[%clk 0:02:58.3]} 5. bxa6 {[%clk 0:03:06.7]}
5... g6 {[%clk 0:02:59.8]} 6. b3 {[%clk 0:03:07.4]} 6... Bg7 {[%clk 0:02:42.4]}
7. Bb2 {[%clk 0:03:08.4]} 7... O-O {[%clk 0:02:36.6]} 8. g3 {[%clk 0:03:08.9]}
8... Nxa6 {[%clk 0:02:25.3]} 9. Bg2 {[%clk 0:03:09.9]} 9... d6 {[%clk
0:02:17.8]} 10. Nh3 {[%clk 0:03:07.4]} 10... Bb7 {[%clk 0:02:02.8]} 11. Nf4
{[%clk 0:03:07.7]} 11... g5 {[%clk 0:01:20.6]} 12. Nh3 {[%clk 0:03:07.9]} 12...
h6 {[%clk 0:01:19.8]} 13. a3 {[%clk 0:02:54.8]} 13... Nc7 {[%clk 0:01:16.2]} 14.
e4 {[%clk 0:02:47]} 14... Ba6 {[%clk 0:01:13.1]} 15. f3 {[%clk 0:02:43.4]} 15...
Qd7 {[%clk 0:00:55]} 16. Kf2 {[%clk 0:02:42.2]} 16... Nxe4+ {[%clk 0:00:52.6]}
17. fxe4 {[%clk 0:02:40.9]} 17... Bxb2 {[%clk 0:00:54.2]} 18. Ra2 {[%clk
0:02:27.4]} 18... Bd4+ {[%clk 0:00:55.4]} 19. Ke1 {[%clk 0:02:28.5]} 19... Rfb8
{[%clk 0:00:47.6]} 20. Nf2 {[%clk 0:02:28.5]} 20... Qb5 {[%clk 0:00:42.8]} 21.
Nd2 {[%clk 0:02:24.6]} 21... Qa5 {[%clk 0:00:31.9]} 22. Bf1 {[%clk 0:02:00.3]}
22... Nb5 {[%clk 0:00:31.9]} 23. b4 {[%clk 0:01:30.5]} 23... cxb4 {[%clk
0:00:22]} 24. Nc4 {[%clk 0:01:20.2]} 24... Qc7 {[%clk 0:00:14.5]} 25. axb4
{[%clk 0:01:18.6]} 25... Nc3 {[%clk 0:00:11.5]} 26. Qxd4 {[%clk 0:01:19.2]}
26... Nxa2 {[%clk 0:00:12]} 27. Bd3 {[%clk 0:01:15]} 27... Nxb4 {[%clk
0:00:12.4]} 28. Nb2 {[%clk 0:00:58.1]} 28... Bxd3 {[%clk 0:00:09.7]} 29. Nfxd3
{[%clk 0:00:54.9]} 29... Nc2+ {[%clk 0:00:10.7]} 0-1

[Event "*** Titled Tuesday 3|2 Blitz"]
[Site "Chess.com"]
[Date "2016.10.04"]
[Round "8"]
[White "stefanodinn"]
[Black "Sven_Tica"]
[Result "0-1"]
[WhiteElo "2221"]
[BlackElo "2385"]
[TimeControl "180+2"]
[EndTime "12:37:29 PDT"]
[Termination "Sven_Tica won by resignation"]

1. Nf3 {[%clk 0:03:00.6]} 1... d5 {[%clk 0:02:57.4]} 2. d4 {[%clk 0:02:58.3]}
2... e6 {[%clk 0:02:55.3]} 3. c4 {[%clk 0:02:58.5]} 3... Nf6 {[%clk 0:02:53.5]}
4. Bg5 {[%clk 0:02:58.3]} 4... Be7 {[%clk 0:02:54.2]} 5. e3 {[%clk 0:02:53.9]}
5... Nbd7 {[%clk 0:02:51.8]} 6. Nc3 {[%clk 0:02:48.5]} 6... h6 {[%clk 0:02:51]}
7. Bh4 {[%clk 0:02:48.6]} 7... O-O {[%clk 0:02:52]} 8. Bd3 {[%clk 0:02:34]} 8...
dxc4 {[%clk 0:02:49.5]} 9. Bxc4 {[%clk 0:02:34.2]} 9... a6 {[%clk 0:02:49.6]}
10. a4 {[%clk 0:02:03.8]} 10... b6 {[%clk 0:02:50.3]} 11. O-O {[%clk 0:02:04]}
11... Bb7 {[%clk 0:02:51.2]} 12. Qe2 {[%clk 0:02:01.5]} 12... c5 {[%clk
0:02:46.5]} 13. Rfd1 {[%clk 0:01:59.7]} 13... cxd4 {[%clk 0:02:42.7]} 14. Nxd4
{[%clk 0:01:51.6]} 14... Qc8 {[%clk 0:02:35]} 15. Rac1 {[%clk 0:01:47.8]} 15...
Rd8 {[%clk 0:02:14.5]} 16. Nxe6 {[%clk 0:01:11.3]} 16... fxe6 {[%clk 0:01:56]}
17. Bxe6+ {[%clk 0:01:11.5]} 17... Kh8 {[%clk 0:01:57.6]} 18. Nd5 {[%clk
0:00:55.3]} 18... Qxc1 {[%clk 0:01:57.1]} 19. Rxc1 {[%clk 0:00:53.3]} 19... Bxd5
{[%clk 0:01:56]} 20. Bxd5 {[%clk 0:00:28.3]} 20... Nxd5 {[%clk 0:01:57.9]} 21.
Bxe7 {[%clk 0:00:29.3]} 21... Nxe7 {[%clk 0:01:58.8]} 22. h4 {[%clk 0:00:26.1]}
22... Nc5 {[%clk 0:01:39.4]} 23. a5 {[%clk 0:00:23.4]} 23... Nb3 {[%clk
0:01:39]} 24. Rc7 {[%clk 0:00:22.2]} 24... Nd5 {[%clk 0:01:38.8]} 25. axb6
{[%clk 0:00:16.4]} 25... Nxc7 {[%clk 0:01:28.1]} 26. bxc7 {[%clk 0:00:17.4]}
26... Re8 {[%clk 0:01:29.4]} 27. Qc2 {[%clk 0:00:13.2]} 27... Na5 {[%clk
0:01:29.1]} 28. b4 {[%clk 0:00:13.5]} 28... Nb7 {[%clk 0:01:30.1]} 29. Qc6
{[%clk 0:00:13.6]} 29... a5 {[%clk 0:01:21.3]} 30. Qxb7 {[%clk 0:00:13.5]} 30...
a4 {[%clk 0:01:22.8]} 31. Qc6 {[%clk 0:00:05.4]} 31... a3 {[%clk 0:01:21.9]} 32.
Qc3 {[%clk 0:00:06.4]} 32... a2 {[%clk 0:01:21.8]} 33. Qa1 {[%clk 0:00:07.2]}
33... Rec8 {[%clk 0:01:23.5]} 34. Kh2 {[%clk 0:00:02.9]} 34... Rxc7 {[%clk
0:01:24.5]} 35. e4 {[%clk 0:00:03.9]} 35... Rc1 {[%clk 0:01:24.5]} 36. Qxc1
{[%clk 0:00:04.2]} 36... a1=Q {[%clk 0:01:25.6]} 0-1

[Event "*** Titled Tuesday 3|2 Blitz"]
[Site "Chess.com"]
[Date "2016.10.04"]
[Round "8"]
[White "cassoulet"]
[Black "MFBerna"]
[Result "0-1"]
[WhiteElo "2271"]
[BlackElo "2154"]
[TimeControl "180+2"]
[EndTime "12:37:33 PDT"]
[Termination "MFBerna won by checkmate"]

1. e4 {[%clk 0:03:02]} 1... e5 {[%clk 0:03:00.6]} 2. Nf3 {[%clk 0:03:02.3]} 2...
Nc6 {[%clk 0:03:00]} 3. Bc4 {[%clk 0:03:03.7]} 3... Bc5 {[%clk 0:03:00.5]} 4. c3
{[%clk 0:03:03.3]} 4... Nf6 {[%clk 0:03:01.5]} 5. d3 {[%clk 0:03:04.7]} 5... d6
{[%clk 0:03:00.9]} 6. Bb3 {[%clk 0:03:06.2]} 6... a6 {[%clk 0:03:02.2]} 7. h3
{[%clk 0:03:07.8]} 7... Ba7 {[%clk 0:03:03.6]} 8. Nbd2 {[%clk 0:03:09.3]} 8...
h6 {[%clk 0:03:04.9]} 9. Nf1 {[%clk 0:03:10.9]} 9... O-O {[%clk 0:03:06.2]} 10.
Ng3 {[%clk 0:03:12.5]} 10... Be6 {[%clk 0:03:03.2]} 11. Bc2 {[%clk 0:03:12.4]}
11... d5 {[%clk 0:03:00]} 12. Qe2 {[%clk 0:03:13.7]} 12... Re8 {[%clk
0:02:58.4]} 13. O-O {[%clk 0:03:11.6]} 13... d4 {[%clk 0:02:58.3]} 14. c4 {[%clk
0:03:12.2]} 14... Bc5 {[%clk 0:02:54.2]} 15. Ba4 {[%clk 0:03:13.1]} 15... Nd7
{[%clk 0:02:39.5]} 16. a3 {[%clk 0:03:11.1]} 16... a5 {[%clk 0:02:40.2]} 17. Bd2
{[%clk 0:03:11.5]} 17... Qf6 {[%clk 0:02:34.3]} 18. Bxc6 {[%clk 0:03:10.7]}
18... bxc6 {[%clk 0:02:35.8]} 19. b4 {[%clk 0:03:12.6]} 19... axb4 {[%clk
0:02:32.8]} 20. axb4 {[%clk 0:03:14.5]} 20... Bf8 {[%clk 0:02:26.4]} 21. Nh2
{[%clk 0:03:14.8]} 21... g6 {[%clk 0:02:13.6]} 22. c5 {[%clk 0:03:00.5]} 22...
h5 {[%clk 0:02:03.7]} 23. Rfc1 {[%clk 0:02:55.4]} 23... Kh7 {[%clk 0:01:21]} 24.
Nf3 {[%clk 0:02:51.5]} 24... Bh6 {[%clk 0:01:11.1]} 25. Bxh6 {[%clk 0:02:45.3]}
25... Kxh6 {[%clk 0:01:13]} 26. Qd2+ {[%clk 0:02:46.5]} 26... Kg7 {[%clk
0:01:14.4]} 27. h4 {[%clk 0:02:42.6]} 27... Qe7 {[%clk 0:00:47.4]} 28. Qb2
{[%clk 0:02:38.2]} 28... Bg4 {[%clk 0:00:39.7]} 29. Ng5 {[%clk 0:02:37.4]} 29...
f6 {[%clk 0:00:39.1]} 30. Nf3 {[%clk 0:02:38.5]} 30... Bxf3 {[%clk 0:00:39.7]}
31. gxf3 {[%clk 0:02:40.4]} 31... Nf8 {[%clk 0:00:36.9]} 32. Kg2 {[%clk
0:02:31.5]} 32... Ne6 {[%clk 0:00:35]} 33. Rg1 {[%clk 0:02:33]} 33... Nf4+
{[%clk 0:00:35.6]} 34. Kf1 {[%clk 0:02:32.1]} 34... Kh7 {[%clk 0:00:29.3]} 35.
Rd1 {[%clk 0:02:33.1]} 35... Qe6 {[%clk 0:00:25.6]} 36. Rh1 {[%clk 0:02:31.9]}
36... Ra2 {[%clk 0:00:25.7]} 37. Qc1 {[%clk 0:02:29.1]} 37... Rea8 {[%clk
0:00:27.1]} 38. Kg1 {[%clk 0:02:27]} 38... Nh3+ {[%clk 0:00:18.6]} 39. Rxh3
{[%clk 0:02:26.2]} 39... Qxh3 {[%clk 0:00:20.5]} 40. Qc4 {[%clk 0:02:27.4]}
40... Kg7 {[%clk 0:00:16.9]} 41. Nh1 {[%clk 0:02:25]} 41... Ra1 {[%clk 0:00:16]}
42. Rc1 {[%clk 0:02:26.2]} 42... Qxf3 {[%clk 0:00:13.1]} 43. Ng3 {[%clk
0:02:25.2]} 43... R8a2 {[%clk 0:00:12.5]} 44. Nh1 {[%clk 0:02:20.7]} 44... Qg4+
{[%clk 0:00:13]} 45. Kh2 {[%clk 0:02:20.3]} 45... Qxh4+ {[%clk 0:00:13.8]} 46.
Kg2 {[%clk 0:02:21.8]} 46... Qg4+ {[%clk 0:00:11.7]} 47. Kh2 {[%clk 0:02:22.5]}
47... Qh4+ {[%clk 0:00:12.9]} 48. Kg2 {[%clk 0:02:23.7]} 48... Qg5+ {[%clk
0:00:14.4]} 49. Ng3 {[%clk 0:02:23.4]} 49... h4 {[%clk 0:00:10.5]} 50. Rxa1
{[%clk 0:02:22.6]} 50... Qxg3+ {[%clk 0:00:11.1]} 51. Kh1 {[%clk 0:02:22.3]}
51... Rxa1+ {[%clk 0:00:11.9]} 52. Qc1 {[%clk 0:02:21.5]} 52... Rxc1# {[%clk
0:00:12.2]} 0-1

[Event "*** Titled Tuesday 3|2 Blitz"]
[Site "Chess.com"]
[Date "2016.10.04"]
[Round "8"]
[White "jcibarra"]
[Black "platy3"]
[Result "0-1"]
[WhiteElo "2697"]
[BlackElo "2739"]
[TimeControl "180+2"]
[EndTime "12:37:59 PDT"]
[Termination "platy3 won by resignation"]

1. e4 {[%clk 0:03:01.9]} 1... c5 {[%clk 0:03:00.8]} 2. Nf3 {[%clk 0:02:59.7]}
2... e6 {[%clk 0:03:01.3]} 3. d4 {[%clk 0:03:00.4]} 3... cxd4 {[%clk 0:03:02.5]}
4. Nxd4 {[%clk 0:03:02.3]} 4... Nf6 {[%clk 0:03:04.1]} 5. Nc3 {[%clk 0:03:02.6]}
5... d6 {[%clk 0:03:05.7]} 6. g4 {[%clk 0:03:00]} 6... e5 {[%clk 0:03:07.1]} 7.
Bb5+ {[%clk 0:02:54.6]} 7... Bd7 {[%clk 0:03:08.4]} 8. Bxd7+ {[%clk 0:02:51.4]}
8... Qxd7 {[%clk 0:03:10.3]} 9. Nf5 {[%clk 0:02:52.3]} 9... h5 {[%clk
0:03:11.9]} 10. Bg5 {[%clk 0:02:53.5]} 10... Nh7 {[%clk 0:03:09.8]} 11. Bh4
{[%clk 0:02:54.6]} 11... g6 {[%clk 0:03:06]} 12. Nd5 {[%clk 0:02:53.9]} 12...
gxf5 {[%clk 0:03:03.9]} 13. gxf5 {[%clk 0:02:53.4]} 13... Qa4 {[%clk 0:03:04.7]}
14. b4 {[%clk 0:02:41.8]} 14... Na6 {[%clk 0:02:59.6]} 15. Qxh5 {[%clk
0:02:05.3]} 15... Qxc2 {[%clk 0:02:51.3]} 16. Qf3 {[%clk 0:01:19.6]} 16... Nc7
{[%clk 0:02:43.8]} 17. Nxc7+ {[%clk 0:00:54]} 17... Qxc7 {[%clk 0:02:45.7]} 18.
O-O {[%clk 0:00:55.3]} 18... Be7 {[%clk 0:02:33]} 19. f6 {[%clk 0:00:54]} 19...
Bd8 {[%clk 0:02:29]} 20. Kh1 {[%clk 0:00:52.5]} 20... Nf8 {[%clk 0:02:29.4]} 21.
Bg5 {[%clk 0:00:40.8]} 21... Ne6 {[%clk 0:02:26]} 22. Be3 {[%clk 0:00:41.9]}
22... Qd7 {[%clk 0:02:13]} 23. Rg1 {[%clk 0:00:41.4]} 23... Nd4 {[%clk 0:02:07]}
24. Bxd4 {[%clk 0:00:26.8]} 24... exd4 {[%clk 0:02:08.9]} 25. Rg5 {[%clk
0:00:22.5]} 25... Qe6 {[%clk 0:02:00.6]} 26. e5 {[%clk 0:00:23.5]} 26... dxe5
{[%clk 0:01:52.4]} 27. Qxb7 {[%clk 0:00:20.8]} 27... Qxf6 {[%clk 0:01:37.5]} 28.
Rag1 {[%clk 0:00:19]} 28... Rxh2+ {[%clk 0:01:31.8]} 29. Kxh2 {[%clk 0:00:18]}
29... Qh6+ {[%clk 0:01:33.7]} 30. Kg2 {[%clk 0:00:15.9]} 30... Qxg5+ {[%clk
0:01:34.4]} 31. Kf1 {[%clk 0:00:17.4]} 31... Qc1+ {[%clk 0:01:35.4]} 32. Kg2
{[%clk 0:00:14.3]} 32... Qc8 {[%clk 0:01:34.1]} 33. Qd5 {[%clk 0:00:14.4]} 33...
Bf6 {[%clk 0:01:16.1]} 34. Kh2 {[%clk 0:00:12.9]} 34... Ke7 {[%clk 0:01:14.2]}
35. f4 {[%clk 0:00:09.4]} 35... Qc2+ {[%clk 0:01:11.5]} 36. Rg2 {[%clk
0:00:04.1]} 36... Rh8+ {[%clk 0:01:11.9]} 37. Kg1 {[%clk 0:00:05.7]} 37... Qc1+
{[%clk 0:01:11.4]} 38. Kf2 {[%clk 0:00:06.8]} 38... Qe3+ {[%clk 0:01:11.4]} 0-1

[Event "*** Titled Tuesday 3|2 Blitz"]
[Site "Chess.com"]
[Date "2016.10.04"]
[Round "8"]
[White "OparinGrigoriy"]
[Black "mwpchess"]
[Result "1-0"]
[WhiteElo "2596"]
[BlackElo "2466"]
[TimeControl "180+2"]
[EndTime "12:38:04 PDT"]
[Termination "OparinGrigoriy won on time"]

1. e4 {[%clk 0:02:57]} 1... c6 {[%clk 0:03:00.1]} 2. Nc3 {[%clk 0:02:57.7]} 2...
d5 {[%clk 0:03:00.7]} 3. Nf3 {[%clk 0:02:59.3]} 3... Bg4 {[%clk 0:03:01.1]} 4.
h3 {[%clk 0:02:59.8]} 4... Bxf3 {[%clk 0:03:02.2]} 5. Qxf3 {[%clk 0:03:01.7]}
5... e6 {[%clk 0:03:03.1]} 6. g3 {[%clk 0:03:02.2]} 6... Nf6 {[%clk 0:03:03.1]}
7. Bg2 {[%clk 0:03:03.8]} 7... dxe4 {[%clk 0:03:03.8]} 8. Nxe4 {[%clk
0:03:05.7]} 8... Nxe4 {[%clk 0:03:04.9]} 9. Qxe4 {[%clk 0:03:07.6]} 9... Qd5
{[%clk 0:03:06]} 10. Qxd5 {[%clk 0:03:08.8]} 10... exd5 {[%clk 0:03:03.5]} 11.
O-O {[%clk 0:03:10.7]} 11... Na6 {[%clk 0:02:59.5]} 12. Re1+ {[%clk 0:03:11.6]}
12... Kd7 {[%clk 0:02:53.3]} 13. c3 {[%clk 0:03:12.8]} 13... Bd6 {[%clk
0:02:50]} 14. d4 {[%clk 0:03:13.1]} 14... Rae8 {[%clk 0:02:50.3]} 15. Bd2 {[%clk
0:03:14.7]} 15... Rxe1+ {[%clk 0:02:48.6]} 16. Rxe1 {[%clk 0:03:16.6]} 16... Re8
{[%clk 0:02:48.9]} 17. Rd1 {[%clk 0:03:18.3]} 17... Nc7 {[%clk 0:02:47.6]} 18.
Bf1 {[%clk 0:03:19.8]} 18... f5 {[%clk 0:02:28.4]} 19. Bd3 {[%clk 0:03:16.3]}
19... g6 {[%clk 0:02:28.4]} 20. Kg2 {[%clk 0:03:16.9]} 20... Ne6 {[%clk
0:02:19]} 21. a4 {[%clk 0:03:16.2]} 21... a5 {[%clk 0:02:18.2]} 22. c4 {[%clk
0:03:13.5]} 22... dxc4 {[%clk 0:02:03.9]} 23. Bxc4 {[%clk 0:03:15.4]} 23... Nc7
{[%clk 0:01:43.8]} 24. Bxa5 {[%clk 0:03:14.6]} 24... Ra8 {[%clk 0:01:39.5]} 25.
Bxc7 {[%clk 0:03:15.4]} 25... Kxc7 {[%clk 0:01:37.8]} 26. b3 {[%clk 0:03:17]}
26... Re8 {[%clk 0:01:36.1]} 27. d5 {[%clk 0:03:17.8]} 27... c5 {[%clk
0:01:34.5]} 28. Kf3 {[%clk 0:03:15.4]} 28... Kb6 {[%clk 0:01:33.9]} 29. h4
{[%clk 0:03:14.3]} 29... f4 {[%clk 0:01:23]} 30. g4 {[%clk 0:03:14.3]} 30... Ka5
{[%clk 0:01:12.1]} 31. Rh1 {[%clk 0:03:12.8]} 31... Kb4 {[%clk 0:00:35.4]} 32.
h5 {[%clk 0:03:13.5]} 32... g5 {[%clk 0:00:21.3]} 33. h6 {[%clk 0:03:14.8]}
33... Re5 {[%clk 0:00:21.5]} 34. Bd3 {[%clk 0:03:12.5]} 34... Kxb3 {[%clk
0:00:22.3]} 35. Bxh7 {[%clk 0:03:13.3]} 35... Re8 {[%clk 0:00:20.7]} 36. Bg6
{[%clk 0:03:13.1]} 36... Rh8 {[%clk 0:00:21.2]} 37. h7 {[%clk 0:03:13.9]} 37...
Kxa4 {[%clk 0:00:22.4]} 38. Ke4 {[%clk 0:03:13.2]} 38... b5 {[%clk 0:00:23.4]}
39. Kf5 {[%clk 0:03:14.8]} 39... c4 {[%clk 0:00:23.2]} 40. Ke6 {[%clk
0:03:15.7]} 40... Bb8 {[%clk 0:00:23.8]} 41. Rc1 {[%clk 0:03:09.8]} 41... Kb4
{[%clk 0:00:23.9]} 42. d6 {[%clk 0:03:10.6]} 42... Kc5 {[%clk 0:00:24.5]} 43. d7
{[%clk 0:03:11.9]} 43... Bc7 {[%clk 0:00:25.9]} 44. Rd1 {[%clk 0:03:01.1]} 44...
b4 {[%clk 0:00:25.9]} 45. Rd5+ {[%clk 0:03:02.6]} 45... Kb6 {[%clk 0:00:25.2]}
46. Kf6 {[%clk 0:03:01.1]} 46... b3 {[%clk 0:00:23.5]} 47. Kg7 {[%clk
0:03:02.3]} 47... Rd8 {[%clk 0:00:22.2]} 48. Be8 {[%clk 0:03:01.2]} 48... Kc6
{[%clk 0:00:21]} 49. h8=Q {[%clk 0:02:37.5]} 49... Kxd5 {[%clk 0:00:22.2]} 50.
Kf7 {[%clk 0:02:39.1]} 50... Be5 {[%clk 0:00:21.7]} 51. Qh1+ {[%clk 0:02:40.6]}
51... Kc5 {[%clk 0:00:21]} 52. Ke6 {[%clk 0:02:39.7]} 52... Bc3 {[%clk
0:00:09.1]} 53. Qb7 {[%clk 0:02:38.1]} 53... Ba5 {[%clk 0:00:06.3]} 54. Ke7
{[%clk 0:02:36.3]} 54... Bb6 {[%clk 0:00:06.1]} 55. Bg6 {[%clk 0:02:31.3]} 55...
b2 {[%clk 0:00:06.2]} 56. Qxb6+ {[%clk 0:02:31.4]} 56... Kxb6 {[%clk 0:00:07]}
57. Kxd8 {[%clk 0:02:33]} 57... c3 {[%clk 0:00:08]} 58. Kc8 {[%clk 0:02:34.1]}
58... b1=Q {[%clk 0:00:09.6]} 59. d8=Q+ {[%clk 0:02:35.3]} 1-0

[Event "*** Titled Tuesday 3|2 Blitz"]
[Site "Chess.com"]
[Date "2016.10.04"]
[Round "8"]
[White "Gergo85"]
[Black "johnathan113"]
[Result "1-0"]
[WhiteElo "2463"]
[BlackElo "2324"]
[TimeControl "180+2"]
[EndTime "12:38:04 PDT"]
[Termination "Gergo85 won by resignation"]

1. e4 {[%clk 0:03:01.9]} 1... g6 {[%clk 0:03:01.3]} 2. d4 {[%clk 0:03:02]} 2...
Nf6 {[%clk 0:03:02.6]} 3. Nc3 {[%clk 0:03:03]} 3... d5 {[%clk 0:03:03.6]} 4.
exd5 {[%clk 0:03:02.9]} 4... Nxd5 {[%clk 0:03:05.5]} 5. Nxd5 {[%clk 0:03:04]}
5... Qxd5 {[%clk 0:03:07.4]} 6. Nf3 {[%clk 0:03:05.5]} 6... Bg7 {[%clk
0:03:08.7]} 7. c3 {[%clk 0:03:06.8]} 7... O-O {[%clk 0:03:09]} 8. Be2 {[%clk
0:03:07.6]} 8... c5 {[%clk 0:03:07.9]} 9. dxc5 {[%clk 0:03:06.1]} 9... Qxd1+
{[%clk 0:03:06.8]} 10. Bxd1 {[%clk 0:03:06.8]} 10... Na6 {[%clk 0:03:00.8]} 11.
Be3 {[%clk 0:03:07.1]} 11... Bf5 {[%clk 0:03:01.7]} 12. Be2 {[%clk 0:03:06.4]}
12... Rac8 {[%clk 0:03:00.1]} 13. Bxa6 {[%clk 0:03:06.6]} 13... bxa6 {[%clk
0:03:02]} 14. O-O-O {[%clk 0:03:02.5]} 14... e5 {[%clk 0:02:57.3]} 15. Rd6
{[%clk 0:02:58.9]} 15... Rc7 {[%clk 0:02:43.4]} 16. Rxa6 {[%clk 0:02:53.4]}
16... Bd3 {[%clk 0:02:44.6]} 17. Rd6 {[%clk 0:02:53.6]} 17... e4 {[%clk
0:02:45.7]} 18. Nd4 {[%clk 0:02:24.3]} 18... Rxc5 {[%clk 0:02:25.9]} 19. Ne6
{[%clk 0:02:19.3]} 19... Rxc3+ {[%clk 0:02:27.1]} 20. bxc3 {[%clk 0:02:19]}
20... fxe6 {[%clk 0:02:29]} 21. Kd2 {[%clk 0:02:04.7]} 21... Rb8 {[%clk
0:02:20.6]} 22. Rxd3 {[%clk 0:02:05.3]} 22... exd3 {[%clk 0:02:11.9]} 23. Kxd3
{[%clk 0:02:07.2]} 23... Rb2 {[%clk 0:02:11.6]} 24. a4 {[%clk 0:01:43.6]} 24...
Ra2 {[%clk 0:02:12.3]} 25. Rb1 {[%clk 0:01:43.2]} 25... Rxa4 {[%clk 0:01:53]}
26. Rb8+ {[%clk 0:01:43.3]} 26... Kf7 {[%clk 0:01:54.4]} 27. Rb7+ {[%clk
0:01:44.5]} 27... Kg8 {[%clk 0:01:52]} 28. Rxa7 {[%clk 0:01:45.4]} 28... Rxa7
{[%clk 0:01:19.2]} 29. Bxa7 {[%clk 0:01:47.3]} 29... Kf7 {[%clk 0:01:20.8]} 30.
Bd4 {[%clk 0:01:43.7]} 30... Bf8 {[%clk 0:01:19.7]} 31. Be5 {[%clk 0:01:42.3]}
31... Ke7 {[%clk 0:01:20.8]} 32. Kc4 {[%clk 0:01:42.3]} 32... Kd7 {[%clk
0:01:22.7]} 33. Kb5 {[%clk 0:01:43.2]} 33... Kc8 {[%clk 0:01:19.6]} 34. Kc6
{[%clk 0:01:41.1]} 34... Be7 {[%clk 0:01:21]} 35. c4 {[%clk 0:01:42]} 35... Bf8
{[%clk 0:01:21.6]} 36. f3 {[%clk 0:01:34.9]} 36... Be7 {[%clk 0:01:22.5]} 37.
Bd6 {[%clk 0:01:31.9]} 37... Bf6 {[%clk 0:01:19.8]} 38. h3 {[%clk 0:01:28.7]}
38... Bg5 {[%clk 0:01:18.6]} 39. Be5 {[%clk 0:01:25.4]} 39... Be7 {[%clk
0:01:19.6]} 40. c5 {[%clk 0:01:24.2]} 40... Bf8 {[%clk 0:01:16.5]} 41. Kb5
{[%clk 0:01:25.1]} 41... Be7 {[%clk 0:01:14.5]} 42. c6 {[%clk 0:01:26.3]} 42...
Bd8 {[%clk 0:01:11.5]} 43. Kc5 {[%clk 0:01:25.5]} 43... Be7+ {[%clk 0:01:02.4]}
44. Bd6 {[%clk 0:01:26]} 44... Bd8 {[%clk 0:01:00.9]} 45. Kd4 {[%clk 0:01:25.8]}
45... Bf6+ {[%clk 0:00:58.7]} 46. Ke4 {[%clk 0:01:27]} 46... Bg7 {[%clk
0:00:57.3]} 47. Kf4 {[%clk 0:01:27.4]} 47... Bf6 {[%clk 0:00:57]} 48. Kg4 {[%clk
0:01:26.4]} 48... e5 {[%clk 0:00:49.1]} 49. Kg3 {[%clk 0:01:19.3]} 49... Bg7
{[%clk 0:00:46.7]} 50. Kf2 {[%clk 0:01:19.8]} 50... Bf6 {[%clk 0:00:47.1]} 51.
Ke3 {[%clk 0:01:21.1]} 51... Be7 {[%clk 0:00:48.1]} 52. Bxe7 {[%clk 0:01:20.9]}
1-0

[Event "*** Titled Tuesday 3|2 Blitz"]
[Site "Chess.com"]
[Date "2016.10.04"]
[Round "8"]
[White "pastouche06"]
[Black "Mastervlad8"]
[Result "1-0"]
[WhiteElo "2337"]
[BlackElo "2144"]
[TimeControl "180+2"]
[EndTime "12:38:09 PDT"]
[Termination "pastouche06 won on time"]

1. d4 {[%clk 0:03:01.9]} 1... Nf6 {[%clk 0:02:58.2]} 2. c4 {[%clk 0:03:02.4]}
2... g6 {[%clk 0:02:55.9]} 3. Nc3 {[%clk 0:03:02.9]} 3... Bg7 {[%clk 0:02:56.7]}
4. e4 {[%clk 0:03:03.3]} 4... d6 {[%clk 0:02:58.1]} 5. Be2 {[%clk 0:03:04.4]}
5... O-O {[%clk 0:02:58.4]} 6. Nf3 {[%clk 0:03:05.9]} 6... Bg4 {[%clk
0:02:58.3]} 7. Be3 {[%clk 0:03:03.1]} 7... Nfd7 {[%clk 0:02:58.2]} 8. Ng1 {[%clk
0:03:03.3]} 8... Bxe2 {[%clk 0:02:57.9]} 9. Ngxe2 {[%clk 0:03:05.2]} 9... c5
{[%clk 0:02:57.2]} 10. d5 {[%clk 0:03:04]} 10... a6 {[%clk 0:02:50.7]} 11. a4
{[%clk 0:03:00]} 11... Ne5 {[%clk 0:02:43.1]} 12. b3 {[%clk 0:03:00.4]} 12...
Ng4 {[%clk 0:02:40.9]} 13. Bf4 {[%clk 0:02:58.7]} 13... Qa5 {[%clk 0:02:19.4]}
14. Bd2 {[%clk 0:02:42.9]} 14... e6 {[%clk 0:01:49.5]} 15. O-O {[%clk
0:02:24.6]} 15... Qc7 {[%clk 0:01:29]} 16. Qc2 {[%clk 0:02:13.3]} 16... Nd7
{[%clk 0:01:24]} 17. h3 {[%clk 0:02:13.1]} 17... Ngf6 {[%clk 0:01:21.6]} 18.
Rae1 {[%clk 0:02:07.5]} 18... exd5 {[%clk 0:01:21.8]} 19. cxd5 {[%clk
0:02:05.9]} 19... Rab8 {[%clk 0:01:20.5]} 20. f4 {[%clk 0:01:48.4]} 20... b5
{[%clk 0:01:18.6]} 21. Ng3 {[%clk 0:01:47.7]} 21... b4 {[%clk 0:01:02]} 22. Nd1
{[%clk 0:01:45.6]} 22... Rfc8 {[%clk 0:00:58.5]} 23. Ne3 {[%clk 0:01:39.6]}
23... Nb6 {[%clk 0:00:52.8]} 24. Nc4 {[%clk 0:01:27.8]} 24... Nxc4 {[%clk
0:00:45.9]} 25. bxc4 {[%clk 0:01:29.7]} 25... b3 {[%clk 0:00:44]} 26. Qd3 {[%clk
0:01:30.8]} 26... b2 {[%clk 0:00:36.3]} 27. e5 {[%clk 0:01:28.4]} 27... Nd7
{[%clk 0:00:27.8]} 28. Ne4 {[%clk 0:01:25.5]} 28... dxe5 {[%clk 0:00:25.5]} 29.
f5 {[%clk 0:01:26.9]} 29... Qb6 {[%clk 0:00:13.1]} 30. f6 {[%clk 0:01:26.7]}
30... Bf8 {[%clk 0:00:13.8]} 31. a5 {[%clk 0:01:16.4]} 31... Qb3 {[%clk
0:00:14.6]} 32. Bc3 {[%clk 0:01:12.4]} 32... Qa2 {[%clk 0:00:06.7]} 33. Rb1
{[%clk 0:01:12.7]} 33... Rb3 {[%clk 0:00:04.6]} 34. Qe2 {[%clk 0:01:09.7]} 34...
Qa3 {[%clk 0:00:05.8]} 35. Qc2 {[%clk 0:01:02]} 35... Rcb8 {[%clk 0:00:06]} 36.
Rf3 {[%clk 0:01:02.4]} 36... R8b7 {[%clk 0:00:04.6]} 37. h4 {[%clk 0:01:03.2]}
37... h5 {[%clk 0:00:04.9]} 38. Rg3 {[%clk 0:01:02.7]} 38... Bh6 {[%clk
0:00:04.7]} 39. Nd6 {[%clk 0:00:57.8]} 39... Rb8 {[%clk 0:00:03.3]} 40. Rxg6+
{[%clk 0:00:57.9]} 1-0